Cogmind - Beta 15 @@@ ROGUE MODE // 2025.05.10 @ 20:35:05 Player: kim.jet.wav Result: Destroyed by D-53 Grenadier with Mini Grenade Launcher Performance ------------- Evolutions (0) 0 Regions Visited (2) 400 Robots Destroyed (4) 20 Value Destroyed (94) 94 Prototype IDs (0) 0 Alien Tech Used (0) 0 Bonus (0) 0 TOTAL SCORE: 514 Bonus ------- None Cogmind --------- Core Integrity 0/250 Matter 186/300 Energy 92/100 System Corruption 5% Temperature Cool (51) Movement Walking (120) Location -10/Mines Parts ------- > --- POWER (1) -------- (None) > --- PROPULSION (2) --- Aluminum Leg > --- UTILITY (2) ------ Small Storage Unit Structural Scanner > --- WEAPON (2) ------- Beam Cannon > --- INVENTORY (8) ---- Light Ion Engine Light Nuclear Core Seismic Detector Targeting Computer ECM Suite Medium Laser Assault Rifle Peak State ------------ > --- POWER ------------ Ion Engine > --- PROPULSION ------- Aluminum Leg Aluminum Leg > --- UTILITY ---------- Small Storage Unit Structural Scanner > --- WEAPON ----------- Medium Laser Assault Rifle > --- INVENTORY -------- Light Ion Engine Light Nuclear Core Aluminum Leg Heat Sink Seismic Detector ECM Suite Small Laser Grenade Launcher [Rating: 8] Favorites ----------- Power Ion Engine Engine Ion Engine Propulsion Aluminum Leg Leg Aluminum Leg Utility Small Storage Unit Device Structural Scanner Storage Small Storage Unit Weapon Medium Laser Energy Gun Medium Laser Energy Cannon Beam Cannon Ballistic Gun Assault Rifle Launcher Grenade Launcher Build | -11 -10 -10 ------- Run | Yrd Mat Min Slots Evolved . | . . . Power . | . . . Propulsion . | . . . Utility . | . . . Weapon . | . . . Parts Attached 12 | 7 2 3 Power 1 | 1 . . Engine 1 | 1 . . Core . | . . . Reactor . | . . . Propulsion 3 | 2 . 1 Treads . | . . . Leg 3 | 2 . 1 Wheel . | . . . Hover . | . . . Flight . | . . . Utility 3 | 2 1 . Device 2 | 1 1 . Storage 1 | 1 . . Processor . | . . . Hackware . | . . . Protection . | . . . Artifact . | . . . Weapon 5 | 2 1 2 Energy Gun 2 | 2 . . Energy Cannon 1 | . . 1 Ballistic Gun 1 | . . 1 Ballistic Cannon . | . . . Launcher 1 | . 1 . Special Weapon . | . . . Impact Weapon . | . . . Slashing Weapon . | . . . Piercing Weapon . | . . . Special Melee Weapon . | . . . Unidentified Prototypes . | . . . Parts Lost 4 | . . 4 Power 1 | . . 1 Propulsion 2 | . . 2 Utility . | . . . Weapon 1 | . . 1 Highest Loss Streak 4 | . . 4 To Critical Strikes . | . . . Average Backups 5 | 1 3 7 Power 1 | . 1 1 Propulsion . | . . . Utility 1 | . . 2 Weapon 1 | . 1 1 Tool/Special . | . . . Unused Backups 5 | . . 5 Power 2 | . . 2 Propulsion . | . . . Utility 3 | . . 3 Weapon . | . . . Tool/Special . | . . . Average Slot Usage (%) 99 | . 100 98 Engine 14 | . 14 14 Leg 27 | . 28 26 Device 14 | . 14 14 Storage 14 | . 14 14 Energy Gun 14 | . 18 12 Ballistic Gun 8 | . . 11 Launcher 4 | . 10 2 Peak Build Rating 8 | 7 7 8 Average Rating 7 | 5 7 7 On Entrance 4 | . 7 7 Naked Turns . | . . . Heaviest Build 17 | 14 16 17 Greatest Support 20 | 20 20 20 Greatest Overweight (x) 1 | 1 . 1 Average Overweight (x) . | . . . Largest Inventory Capacity 8 | 8 8 8 Average Capacity 7 | 7 8 8 Most Carried 8 | 2 5 8 Average Carried 5 | 1 3 7 Final Capacity 8 | 8 8 8 Final Carried 7 | 2 5 7 Class Distribution -------------------- 100% | Mutant Dominant Class ---------------- Mutant | -10/Materials Mutant | -10/Mines Resources | -11 -10 -10 ----------- Run | Yrd Mat Min Matter Collected 359 | 270 . 89 Remotely . | . . . Salvage Created 219 | 86 . 133 Parts 8 | 3 . 5 Haulers Intercepted . | . . . Recyclers Shooed 2 | 1 . 1 Parts Field Recycled . | . . . Retrieved Matter . | . . . Parts Self-Destructed . | . . . Prevented . | . . . Kills | -11 -10 -10 ------- Run | Yrd Mat Min Combat Hostiles Destroyed 12 | . . 12 Guns 2 | . . 2 Cannons 1 | . . 1 AOE 9 | . . 9 Classes Destroyed 4 | 2 . 2 Tunneler 1 | 1 . . Recycler 1 | 1 . . Grunt 2 | . . 2 Assembled 10 | . . 10 Best Kill Streak 10 | 2 . 10 Combat Bots Only 10 | . . 10 Max Kills in Single Turn 2 | 1 . 2 Gunslinging . | . . . Exploded 2 | . . 2 Melee . | . . . Uniques/NPCs Destroyed . | . . . Combat | -11 -10 -10 -------- Run | Yrd Mat Min Hostile Shots Fired 57 | . . 57 Missed 12 | . . 12 Hits 45 | . . 45 Melee 1 | . . 1 Projectile 44 | . . 44 AOE 4 | . . 4 Critical Strikes 1 | . . 1 Damage Taken 792 | . . 792 Core 275 | . . 275 Absorbed by Shields . | . . . Core Remaining (%) 100 | 100 . . Volleys Fired 33 | 4 4 25 Largest 2 | 2 2 2 Hottest 90 | 90 80 90 Shots Fired 59 | 8 5 46 Gun 44 | 8 4 32 Cannon 6 | . . 6 Launcher 9 | . 1 8 Special . | . . . Kinetic 16 | . . 16 Thermal 34 | 8 4 22 Explosive 9 | . 1 8 Electromagnetic . | . . . Robot Hit Streak 4 | 3 . 4 Robot Miss Streak 3 | 2 3 2 Penetration Max . | . . . Secondary Targets . | . . . Shots Hit Robots 29 | 5 . 24 Core Hits 35 | 3 . 32 Critical Kills . | . . . Critical Parts Destroyed . | . . . Critical Strikes . | . . . Melee Attacks . | . . . Impact . | . . . Slashing . | . . . Piercing . | . . . Sneak Attacks . | . . . Combat Hostiles . | . . . Follow-up Attacks . | . . . Damage Inflicted 916 | 57 13 846 Guns 343 | 57 . 286 Cannons 52 | . . 52 Explosions 521 | . 13 508 Melee . | . . . Ramming . | . . . Kinetic 160 | . . 160 Thermal 235 | 57 . 178 Explosive 521 | . 13 508 Electromagnetic . | . . . Impact . | . . . Slashing . | . . . Piercing . | . . . Highest Corruption 5 | . . 5 Average Corruption 5 | . . 5 Corruption Purged . | . . . Corruption Blocked . | . . . Effects 1 | . . 1 Matter Fused 1 | . . 1 Overload Shots . | . . . Overflow Damage . | . . . Projectiles . | . . . Explosions . | . . . Melee . | . . . Knockbacks . | . . . Impact . | . . . Kinetic . | . . . Secondary . | . . . Self-Inflicted Damage . | . . . Shots . | . . . Rammed . | . . . Targets Rammed . | . . . Kicked . | . . . Crushed . | . . . Highest Temperature 210 | 120 20 210 Average Temperature 70 | 61 10 79 Received Heat Transfer 102 | . . 102 Siege Activations . | . . . Martial Activations . | . . . Shielding Activations . | . . . Robots Disrupted . | . . . Combat Hostiles . | . . . Robots Corrupted . | . . . Combat Hostiles . | . . . Parts Fried . | . . . Impact Corruptions . | . . . Robots Melted . | . . . Combat Hostiles . | . . . Parts Melted . | . . . Heat Transferred 642 | 161 . 481 Parts Sabotaged . | . . . Parts Stolen . | . . . Parts Stripped . | . . . Power Chain Reactions . | . . . Alert | -11 -10 -10 ------- Run | Yrd Mat Min Maximum Alert Level . | . . . Low Security (%) 100 | 100 100 100 Level 1 . | . . . Level 2 . | . . . Level 3 . | . . . Level 4 . | . . . Level 5 . | . . . High Security . | . . . Max Security . | . . . Peak Influence 40 | 10 8 40 Initial . | . . . Average 4 | 1 . 7 Influence Increases 101 | 10 8 83 Destroy 0b10 Robot/C 40 | . . 40 Destroy 0b10 Robot/NC 10 | 10 . . Destroy Leader 10 | . . 10 Destroy Structure 41 | . 8 33 Influence Decreases 101 | 10 8 83 Time Decay 87 | 10 8 69 Lost Part 14 | . . 14 Squads Dispatched 2 | . 2 . Investigation 1 | . 1 . Extermination . | . . . Reinforcement 1 | . 1 . Assault . | . . . Garrison . | . . . Intercept . | . . . Searches Triggered . | . . . Construction Impeded . | . . . Haulers Reinforced . | . . . Active Scanning Responses . | . . . Cargo Convoy Interrupts . | . . . Stealth | -11 -10 -10 --------- Run | Yrd Mat Min Distress Signals . | . . . Communications Jammed . | . . . Distress Signals . | . . . Times Spotted 23 | . 1 22 Peak Tracking Total 10 | . 1 10 Tactical Retreats . | . . . Traps | -11 -10 -10 ------- Run | Yrd Mat Min Traps Triggered 1 | . 1 . Indirectly . | . . . Trap Hack Attempts . | . . . Triggered . | . . . Disarmed . | . . . Reprogrammed . | . . . Reused . | . . . Traps Extracted . | . . . Installed . | . . . Triggered . | . . . Machines | -11 -10 -10 ---------- Run | Yrd Mat Min Machines Disabled . | . . . Max in Single Turn . | . . . Machines Repaired . | . . . Machines Dismantled . | . . . Machines Sabotaged . | . . . Overloaded Fab Kills . | . . . Hacking | -11 -10 -10 --------- Run | Yrd Mat Min Machines Accessed 1 | . 1 . Terminals 1 | . 1 . Fabricators . | . . . Repair Stations . | . . . Recycling Units . | . . . Scanalyzers . | . . . Garrison Access . | . . . Total Hacks 1 | . 1 . Successful 1 | . 1 . Failed . | . . . Catastrophic . | . . . Database Lockouts . | . . . Manual . | . . . Terminals 1 | . 1 . Fabricators . | . . . Repair Stations . | . . . Recycling Units . | . . . Scanalyzers . | . . . Garrison Access . | . . . Terminal Hacks 1 | . 1 . Dispatch Records 1 | . 1 . Fabricator Hacks . | . . . Repair Station Hacks . | . . . Recycling Unit Hacks . | . . . Scanalyzer . | . . . Garrison Access Hacks . | . . . Unauthorized Hacks . | . . . Terminals . | . . . Fabricators . | . . . Repair Stations . | . . . Recycling Units . | . . . Scanalyzers . | . . . Garrison Access . | . . . Data Cores Recovered . | . . . Used . | . . . Hacking Detections . | . . . Full Trace Events . | . . . Feedback Events . | . . . Feedback Blocked . | . . . Robot Schematics Acquired . | . . . Robots Built . | . . . Authchips . | . . . Time . | . . . Total Robot Build Rating . | . . . Part Schematics Acquired . | . . . Parts Built . | . . . Authchips . | . . . Time . | . . . Total Part Build Rating . | . . . Parts Repaired . | . . . Time . | . . . Parts Recycled . | . . . Recycled Matter . | . . . Retrieved Matter . | . . . Retrieved Components . | . . . Parts Scanalyzed . | . . . Part Schematics Acquired . | . . . Parts Damaged . | . . . Bothacking | -11 -10 -10 ------------ Run | Yrd Mat Min Used RIF Installer . | . . . Robots Hacked . | . . . Non-combat . | . . . Combat . | . . . Robot Hacks Applied . | . . . Relay Couplers Released . | . . . Fabnet Peak Effective % . | . . . Robots Rewired . | . . . Allies Hacked . | . . . Hacks Repelled . | . . . Allies | -11 -10 -10 -------- Run | Yrd Mat Min Total Allies 1 | . . 1 Largest Group 1 | . . 1 Highest-Rated Group 31 | . . 31 Highest-Rated Ally 31 | . . 31 Total Orders . | . . . Ally Attacks 15 | . . 15 Total Damage 190 | . . 190 Kills 5 | . . 5 Allies Corrupted . | . . . Allies Melted . | . . . Intel | -11 -10 -10 ------- Run | Yrd Mat Min Active Infowar (turns) 470 | 25 123 322 Structural 409 | . 87 322 Seismic 61 | 25 36 . Robot Analysis Total . | . . . Derelict Logs Recovered . | . . . Drone Launches . | . . . Drone Recoveries . | . . . Exploration | -11 -10 -10 ------------- Run | Yrd Mat Min Turns Passed 531 | 84 125 322 Spaces Moved 340 | 51 92 197 Core 8 | 8 . . Treads . | . . . Legs 332 | 43 92 197 Wheels . | . . . Hover . | . . . Flight . | . . . Fastest Speed 50 | 50 120 120 Average Speed 119 | 114 120 120 Slowest Speed 190 | 120 120 190 Overloaded Moves . | . . . Propulsion Burnouts . | . . . Robots Hopped . | . . . Potential Cave-ins . | . . . Cave-ins Triggered . | . . . Exploration Rate (%) 31 | 5 24 64 Regions Visited 2 Branch Regions 1 Pre-discovered Areas . | . . . Known Exits Taken . | . . . Unknown Exits Taken 2 | 1 1 . Scrap Searched 1 | . . 1 Spaces Dug . | . . . Terrain Destroyed 58 | . 6 52 Melee . | . . . Projectile . | . . . AOE 58 | . 6 52 Terrain Rammed . | . . . Walls Destroyed . | . . . Machines Disabled . | . . . Actions | -11 -10 -10 --------- Run | Yrd Mat Min Total 400 | 65 100 235 Wait 3 | 1 . 2 Move 338 | 50 91 197 Hop . | . . . Pick Up 10 | 3 3 4 Fast Attach 6 | 6 . . Attach 2 | 1 . 1 Detach . | . . . Swap 6 | . 2 4 Drop 2 | . . 2 Fire 33 | 4 4 25 Melee . | . . . Ram . | . . . Kick . | . . . Crush . | . . . Escape Stasis . | . . . Rewire . | . . . Trap . | . . . Miscellaneous . | . . . Route ------- -11/Scrapyard -10/Materials -10/Mines History --------- Turn | Location | Event 7 | -11/Scrapyard | Discovered new exit (range 15) 85 | -11/Scrapyard | Entered Materials 178 | -10/Materials | Discovered new exit (range 12) 210 | -10/Materials | Entered Mines 310 | -10/Mines | Build established: Mutant 444 | -10/Mines | Assembled infested the area 446 | -10/Mines | Received a Mining Laser from a helpful Derelict 502 | -10/Mines | Core integrity fell below 50% 531 | -10/Mines | Core integrity fell below 20% 532 | -10/Mines | Destroyed by D-53 Grenadier with Mini Grenade Launcher Last Messages --------------- 00520_ as-56825 destroyed. 00521_ U-05 Engineer lays Concrete. 00522_ The unstable cave ceiling collapses. 00522_ U-05 Engineer lays Concrete. 00523_ as-80712 destroyed. 00523_ as-39399 destroyed. 00523_ U-05 Engineer lays Concrete. 00526_ as-56861 destroyed. 00526_ D-53 Grenadier unfolds itself. 00527_ U-05 Engineer lays Concrete. 00528_ as-33394 destroyed. 00528_ U-05 Engineer destroyed. 00528_ U-05 Engineer lays Concrete. 00529_ The unstable cave ceiling collapses. 00529_ U-05 Engineer lays Concrete. 00530_ Grenade Launcher destroyed. 00530_ Ion Engine destroyed. 00530_ U-05 Engineer destroyed. 00531_ A4-OKL(g) destroyed. 00531_ as-67348 destroyed. Map ----- +----------------------------------------------------+ | ???????????## ??????????????????????????? | | ??????????### ##??????????????????????????? | | ?????????#### ##??????????????????????????? | | ?????????### ##??????????????????????????? | | ????????### ######??????????????????????? | | ???????#### ######??????????????????????? | | ???????### % ###########?????????????? | | #??????## ##### ###########?????????????? | | ##?###### ##### ## ##?????????????? | | ########## #### ##?????????????? | | ##### ####### ##?????????????? | | #### #### ##?????????????? | | ##### ### #### ##?????????????? | | ####### ####### #### ##?????????????? | | ###### ###### #### ##?????????????? | | ##?? ?????## #### ##?????????????? | | ##???? ????## #############?????????????? | | ##????? ????## ###############???????????? | | ### ### ????## ###############???????????? | | ### #### ???## ########* ???????????? | | #### ##### ## # =#####???????????? | | #### #####r#$ ###???????????? | | ######### d ###??????????? | | ######### d% * #####????????? | | #??????##### ###### % ####? #????? | | #??????##### ###### @ ##????? | | ????????### ###### ##????? | | ????????## ###### % ## ##????? | | ???????### ######## ####? ##????? | | ???????### ####### # #?? ###????? | | ???????## ##???##### #?###?????? | | ???????## ##???#### ##????????? | | ???????## ###??????## ##???????? | | ??????### ####???????# ##???????? | | ??????### ###????????# ##??????? | | ??????## ##?????????# %a ##??????? | | ??????## ##?????????### #a ### ??????? | | ??????## ###?????????#### # ## ??????? | | ??????### ###?????#####?#### ????????? | | ?######## ###?????#######?### ???????????? | | ######### ####????### ###????????????????? | | ### ## ###????### ##????????????????? | | # ######### ##????????????????? | | ######## ###????????????????? | | ###?????????????????? | | #### =| ##??????????????????? | | ##### # ###=### ###??????????????????? | | ???#### ## ###%########??????????????????? | | ########## ### #######???????????????????? | | ########## ###![#######??????????????????? | +----------------------------------------------------+ Best States ------------- Heat Dissipation 25 Energy Generation 10 Energy Capacity 250 Matter Stores 300 Matter Capacity 300 Sight Range 16 Terrain Scan Density 10 Evasion (%) 55 Item Schematics ----------------- None Robot Schematics ------------------ None Fabricated ------------ Nothing Repaired ---------- Nothing Alien Tech Used ----------------- None Achievements -------------- None Challenges ------------ None Game ------ Seed CombatBoreAutocannon Manual? 0 Play Time 00:11:09 Cumulative 33.9 hours Start 2025.05.10 @ 15:09:28 End 2025.05.10 @ 20:35:05 Sessions 3 Manual Loads 0 Difficulty Rogue Special Mode None Game No. 186 Rogue 186 Adventurer 0 Explorer 0 Win Type - Total 0 Types 0/0/0/0/0/0/0/0/0/0 Lore% 13 Gallery% 17 Achievement% 17 Wizard Run 0 Options --------- Layout 0 ASCII 1 Keyboard 1 Movement Numpad Keybinds 1 Fullscreen 1 Font 18/X11 Map View 76x50 Zoom Use 0% Tactical HUD 1 Map Filters NONE Filters NONE Steam 1 RUN: ac66a037-d87a-4e37-b54e-ab4a8b7e6f57